bitfinex/quotes_ETHUSD_20250110
["timestamp","ask_amount","ask_price","bid_price","bid_amount"]
[1736508275784,5.78881518,3313.3,3313.2,0.2225]
[1736508276110,5.78881518,3313.3,3313.2,0.0075]
[1736508276317,5.78881518,3313.3,3313.2,0.2225]
[1736508278113,5.78881518,3313.3,3313.2,0.0075]
[1736508278280,5.78881518,3313.3,3313.2,0.2225]
[1736508278914,5.37,3313.2,3312.7,0.61727387]
[1736508279116,6.0185,3312.9,3312.8,0.215]
[1736508279289,3.0185,3312.9,3312.8,0.23]
[1736508280340,3.01859,3312.8,3311.4,0.7967]
[1736508280489,3.01859,3312.8,3311.8,0.61032054]
[1736508280490,0.754,3312.7,3311.8,0.61032054]
[1736508280684,0.754,3312.7,3312.0,0.0075]
[1736508280685,2.77067518,3312.3,3312.0,0.0075]
[1736508281794,5.78973518,3312.3,3312.2,0.0075]
[1736508282922,5.78973518,3312.3,3312.2,0.2225]
[1736508283097,8.78973518,3312.3,3312.2,0.2225]
[1736508284896,8.78973518,3312.3,3312.2,0.0075]
[1736508285095,8.78973518,3312.3,3312.2,0.2225]
[1736508287816,3.0,3312.3,3312.2,0.23]
[1736508288019,3.0,3312.3,3312.2,0.9836]
[1736508291998,6.01905,3312.3,3312.2,0.23]
[1736508296212,6.01905,3312.3,3312.2,0.015]
[1736508296419,6.01905,3312.3,3312.2,0.23]
[1736508300492,3.0,3312.3,3311.8,0.0075]
[1736508300694,6.01915,3312.2,3311.9,0.25539492]
[1736508300898,6.01915,3312.2,3311.9,0.215]
[1736508302696,0.754,3312.7,3312.0,0.015]
[1736508302923,3.01886,3312.6,3312.1,0.0075]
[1736508303207,3.0,3312.5,3312.2,0.015]
[1736508303832,3.0189,3312.5,3312.2,0.015]
[1736508305104,3.0189,3312.5,3311.9,0.215]
[1736508305105,3.01905,3312.3,3311.9,0.215]
[1736508305300,0.7818,3312.4,3311.9,0.215]
[1736508305505,3.01926,3312.1,3311.9,0.215]
[1736508305707,3.01926,3312.1,3312.0,0.015]
[1736508309609,3.01908,3312.3,3312.0,0.015]
[1736508309810,3.0,3312.2,3312.0,0.015]
[1736508310205,3.01919,3312.2,3312.0,0.015]
[1736508315448,3.01919,3312.2,3312.1,0.23]
[1736508316646,6.01899,3312.4,3312.2,0.015]
[1736508316851,3.01878,3312.6,3312.2,0.015]
[1736508317052,3.0,3312.5,3312.2,0.015]
[1736508317476,3.79797,3312.8,3312.2,0.015]
[1736508317653,3.01868,3312.7,3312.2,0.015]
[1736508317856,3.0,3312.6,3312.4,0.015]
[1736508319386,3.0,3312.6,3312.2,0.015]
[1736508319752,3.0,3312.6,3312.2,0.63305107]
[1736508319966,3.0,3312.6,3312.4,0.015]
[1736508320152,3.01868,3312.7,3312.4,0.015]
[1736508321360,3.01851,3312.9,3312.3,0.0225]
[1736508321564,6.141,3313.0,3312.3,0.0225]
[1736508321764,5.37,3313.0,3312.3,0.0225]
[1736508322273,5.37,3313.0,3312.2,0.61805107]
[1736508322274,5.37,3313.0,3312.5,0.0225]
[1736508322858,5.37,3313.0,3312.7,0.015]
[1736508324390,8.14067518,3313.0,3312.5,0.0075]
[1736508324598,3.01869,3312.7,3312.6,0.215]
[1736508327385,6.01869,3312.7,3312.6,0.215]
[1736508329201,3.80232,3312.9,3312.6,0.215]
[1736508329402,5.37,3313.0,3312.7,0.015]
[1736508332269,6.01823,3313.2,3312.7,0.015]
[1736508332469,3.0,3313.1,3312.7,0.015]
[1736508333672,6.01851,3312.9,3312.2,0.61805107]
[1736508333873,6.01851,3312.9,3312.8,0.215]
[1736508334806,0.7884,3313.0,3312.8,0.215]
[1736508335010,3.7884,3313.0,3312.8,0.215]
[1736508335374,3.80682,3313.0,3312.8,0.215]
[1736508335775,0.7884,3313.0,3312.8,0.215]
[1736508335976,3.0185,3312.9,3312.8,0.215]
[1736508343217,3.01835,3313.1,3312.9,0.015]
[1736508343599,3.0,3313.0,3312.9,0.015]
[1736508348664,3.01841,3313.0,3312.9,0.015]
[1736508349819,6.0185,3312.9,3312.8,0.215]
[1736508350019,3.01862,3312.8,3311.8,8.29943]
[1736508350226,3.01869,3312.7,3312.0,0.0225]
[1736508350723,3.01869,3312.7,3312.2,0.0225]
[1736508351022,3.0,3312.8,3312.3,0.25483273]
[1736508351237,6.01895,3312.4,3312.3,0.03983273]
[1736508351387,7.66841252,3312.4,3312.3,0.25483273]
[1736508351711,7.66841252,3312.4,3312.3,0.215]
[1736508353328,6.78945,3312.4,3312.3,0.215]
[1736508355577,3.0,3312.3,3311.0,5.28]
[1736508355879,3.0,3312.0,3311.4,0.25539248]
[1736508356067,3.0,3312.0,3311.5,0.0225]
[1736508356463,3.0,3312.0,3311.7,0.015]
[1736508356663,6.01932,3312.0,3311.7,0.015]
[1736508356858,6.01932,3312.0,3311.9,0.015]
[1736508357601,6.01932,3312.0,3311.7,0.015]
[1736508357960,6.01932,3312.0,3311.9,0.015]
[1736508359383,3.0,3311.7,3310.8,3.02041]
[1736508359575,6.0196,3311.7,3311.0,0.0225]
[1736508360606,6.0196,3311.7,3311.1,0.215]
[1736508360990,3.0,3311.4,3311.3,0.59195146]
[1736508361378,3.0,3311.5,3311.4,0.0075]
[1736508361577,3.83242,3311.8,3311.4,0.0075]
[1736508361911,3.01935,3312.0,3311.4,0.0225]
[1736508362078,3.0,3311.9,3311.4,0.0225]
[1736508362279,3.01942,3311.9,3311.4,0.0225]
[1736508362588,3.01942,3311.9,3311.6,0.015]
[1736508362998,3.0,3311.7,3310.7,1.19253581]
[1736508363184,3.7978,3311.3,3310.8,0.25610775]
[1736508363373,6.02023,3311.0,3310.9,0.215]
[1736508364690,6.02023,3311.0,3310.9,0.015]
[1736508365126,6.02023,3311.0,3310.9,0.0075]
[1736508365290,6.89932052,3311.0,3310.9,0.215]
[1736508365486,3.87909052,3311.0,3310.2,0.0225]
[1736508365705,3.0,3310.7,3310.1,4.233]
[1736508366024,3.0,3310.4,3310.2,0.25632878]
[1736508366430,3.0,3310.4,3310.3,0.015]
[1736508366814,3.56847518,3310.8,3310.3,0.015]
[1736508367329,3.0,3310.5,3310.3,0.60627931]
[1736508368730,6.02069,3310.5,3310.3,0.60627931]
[1736508368922,8.79136518,3310.5,3310.3,0.015]
[1736508369120,8.79136518,3310.5,3310.4,0.215]
[1736508370099,9.6705017,3310.5,3310.4,0.215]
[1736508370798,9.6705017,3310.5,3310.4,0.2562551]
[1736508370993,8.79136518,3310.5,3310.4,0.2562551]
[1736508372152,9.59656518,3310.5,3310.4,0.2562551]
[1736508378367,9.59656518,3310.5,3310.4,0.0412551]
[1736508378537,9.59656518,3310.5,3310.4,0.2562551]
[1736508378728,9.59656518,3310.5,3310.4,0.215]
[1736508378928,11.0932217,3310.5,3310.4,0.25711863]
[1736508386322,8.39052,3310.7,3310.4,0.25711863]
[1736508387391,5.77067518,3310.5,3310.4,0.25711863]
[1736508387790,8.79136518,3310.5,3310.4,0.25711863]
[1736508387983,9.57836518,3310.5,3310.4,0.25711863]
[1736508388402,9.57836518,3310.5,3310.4,0.215]
[1736508388596,11.0732017,3310.5,3310.4,0.215]
[1736508389369,3.0,3310.3,3310.1,4.233]
[1736508389695,3.02087,3310.3,3310.2,0.215]
[1736508397513,3.8028,3310.2,3309.1,0.1711064]
[1736508397710,2.77067518,3309.5,3309.2,0.215]
[1736508397936,2.77067518,3309.5,3309.3,0.015]
[1736508398538,2.77067518,3309.5,3309.4,0.0075]
[1736508398720,2.77067518,3309.5,3309.4,0.05885475]
[1736508399427,2.77067518,3309.5,3309.4,0.25885475]
[1736508399622,2.77067518,3309.5,3309.4,0.215]
[1736508400351,2.77067518,3309.5,3309.3,0.0075]
[1736508400652,5.77067518,3309.5,3309.4,0.215]
[1736508400947,3.0,3309.4,3309.3,0.0075]
[1736508401249,2.77067518,3309.5,3309.3,0.2225]
[1736508401451,3.0,3309.4,3309.3,0.2225]
[1736508401677,3.0,3309.4,3309.3,0.0075]
[1736508401820,2.77067518,3309.5,3309.3,0.2225]
[1736508402026,3.0,3309.4,3309.3,0.2225]
[1736508404219,3.8266,3309.4,3309.3,0.2225]
[1736508404420,7.81017152,3309.4,3309.1,0.1711064]
[1736508404621,9.61914518,3309.2,3309.1,0.1711064]
[1736508406522,6.02251,3308.5,3308.4,0.215]
[1736508406745,8.79318518,3308.5,3308.4,0.215]
[1736508407252,8.79318518,3308.5,3308.0,0.59055689]
[1736508407253,3.0,3308.3,3308.0,0.59055689]
[1736508407453,3.0,3308.3,3308.1,0.215]
[1736508409369,3.0,3308.1,3307.9,0.60345035]
[1736508409564,3.0,3308.1,3308.0,0.215]
[1736508411298,5.77067518,3308.1,3308.0,0.215]
[1736508411797,3.0,3308.3,3308.0,0.215]
[1736508412190,3.0,3308.3,3308.1,0.04063534]
[1736508412586,3.0,3308.3,3308.0,0.215]
[1736508413207,3.0,3308.3,3308.1,0.04063534]
[1736508413376,2.77067518,3308.5,3308.2,0.015]
[1736508413582,5.37,3308.8,3308.4,0.0075]
[1736508414118,8.37,3308.8,3308.6,0.015]
[1736508414289,3.0,3308.8,3308.6,0.015]
[1736508414495,3.0,3308.9,3308.5,0.0075]
[1736508414709,3.0,3308.9,3308.8,0.015]
[1736508415311,3.0,3308.9,3308.6,0.015]
[1736508416020,3.0,3308.9,3308.7,0.04027386]
[1736508416345,3.0,3308.9,3308.8,0.015]
[1736508417516,3.87926552,3308.9,3308.4,0.0225]
[1736508417712,0.87926552,3308.9,3308.8,0.04023698]
[1736508417913,3.0,3309.0,3308.4,0.015]
[1736508418113,3.02198,3309.1,3308.6,0.0075]
[1736508418114,3.0,3309.1,3308.6,0.0075]
[1736508418428,5.79230518,3309.5,3308.6,0.0075]
[1736508418612,2.77067518,3309.5,3308.6,0.0075]
[1736508418819,5.37,3309.6,3308.8,0.0075]
[1736508419123,5.86817298,3309.6,3309.0,0.015]
[1736508419327,2.77067518,3309.5,3309.0,0.015]
[1736508419550,2.77067518,3309.5,3309.1,0.215]
[1736508419551,6.57014518,3309.2,3309.1,0.215]
[1736508419749,6.02197,3309.1,3308.0,8.30297]
[1736508419910,3.02218,3308.9,3308.1,0.23]
[1736508420121,3.0,3308.8,3308.1,0.23]
[1736508420315,3.0,3309.1,3308.5,0.015]
[1736508421136,3.0217,3309.4,3308.5,0.015]
[1736508421351,3.0217,3309.4,3308.6,0.0075]
[1736508421502,3.0217,3309.4,3308.5,0.015]
[1736508421503,3.0,3308.9,3308.5,0.0075]
[1736508422037,3.0,3309.1,3308.5,0.015]
[1736508422907,3.0,3308.9,3308.1,0.215]
[1736508423110,3.0,3308.7,3308.6,0.0400865]
[1736508423337,3.0,3308.7,3308.1,0.215]
[1736508423604,3.0,3308.8,3308.6,0.0397501]
[1736508423809,3.0,3308.9,3308.2,0.0225]
[1736508424004,3.0,3308.9,3308.7,0.03974125]
[1736508424229,3.0,3308.9,3308.2,0.0225]
[1736508424433,3.0,3309.1,3308.8,0.03970437]
[1736508424613,3.0,3309.1,3308.2,0.0225]
[1736508424816,3.0,3309.1,3308.2,3.04525]
[1736508425136,3.0,3309.2,3308.4,0.0225]
[1736508426207,3.0,3309.2,3308.6,0.015]
[1736508426545,3.682989,3309.2,3308.6,0.015]
[1736508426745,6.47553418,3309.2,3308.4,0.0075]
[1736508427142,6.47553418,3309.2,3308.3,0.0075]
[1736508427323,6.47553418,3309.2,3308.6,0.015]
[1736508428325,6.47553418,3309.2,3308.3,0.0075]
[1736508428326,6.47553418,3309.2,3308.4,0.015]
[1736508428529,6.02179,3309.3,3308.4,0.015]
[1736508428726,0.8081,3309.4,3308.7,0.0075]
[1736508428971,3.02161,3309.5,3308.7,0.0075]
[1736508429269,3.0,3309.4,3308.9,0.015]
[1736508429422,3.0,3309.4,3309.1,0.0075]
[1736508429622,4.139161,3309.4,3309.1,0.0075]
[1736508429928,7.160851,3309.4,3309.1,0.0075]
[1736508430973,3.02179,3309.3,3309.1,0.0075]
[1736508432077,0.7719,3309.3,3309.2,0.215]
[1736508432258,3.79368,3309.3,3309.2,0.215]
[1736508432442,5.16403162,3309.3,3309.2,0.215]
[1736508433910,4.39213162,3309.3,3309.2,0.215]
[1736508434074,3.0,3309.4,3309.2,0.215]
[1736508435781,6.1419,3309.6,3309.2,0.215]
[1736508435782,5.37,3309.6,3309.2,0.215]
[1736508435928,3.02144,3309.7,3309.3,0.015]
[1736508436126,3.02144,3309.7,3309.3,0.05450602]
[1736508436331,0.7719,3309.9,3309.3,0.05450602]
[1736508436635,3.79314,3309.9,3309.3,0.05450602]
[1736508436833,3.0,3309.8,3309.3,0.015]
[1736508438638,3.02134,3309.8,3309.3,0.015]
[1736508440346,3.02142,3309.7,3309.3,0.015]
[1736508441324,3.0,3309.5,3309.3,0.015]
[1736508441501,2.77067518,3309.5,3308.3,3.02262]
[1736508441837,3.02179,3309.3,3308.4,0.215]
[1736508442031,3.02179,3309.3,3308.5,0.0225]
[1736508442195,3.02191,3309.2,3308.7,0.5937202]
[1736508442395,6.02199,3309.1,3308.8,0.215]
[1736508443465,6.02199,3309.1,3308.9,0.0075]
[1736508443628,6.90125652,3309.1,3308.9,0.0075]
[1736508444446,6.90125652,3309.1,3307.3,3.27358]
[1736508444447,3.0,3308.8,3307.5,5.28]
[1736508444673,6.02224,3308.8,3307.8,0.215]
[1736508444866,3.0,3308.8,3307.8,0.25500319]
[1736508445010,3.65527752,3308.8,3307.8,0.04000319]
[1736508445207,2.77067518,3308.6,3307.9,0.215]
[1736508445668,2.77067518,3308.6,3308.1,0.015]
[1736508445967,2.77067518,3308.6,3308.2,0.03985561]
[1736508446110,0.27706752,3308.5,3308.2,0.03985561]
[1736508446312,3.02261,3308.4,3308.2,0.03985561]
[1736508447028,3.77991,3308.4,3308.2,0.03985561]
[1736508447228,6.0227,3308.3,3307.7,4.237]
[1736508447460,3.0227,3308.3,3307.9,0.0075]
[1736508447658,3.0227,3308.3,3307.8,0.25518072]
[1736508447659,3.56477518,3308.2,3307.8,0.04018072]
[1736508447966,3.0,3308.1,3307.9,0.215]
[1736508448169,6.02297,3308.0,3307.9,0.215]
[1736508449433,6.02315,3307.8,3307.7,4.237]
[1736508449667,6.02315,3307.8,3307.7,4.452]
[1736508449987,6.02315,3307.8,3307.7,4.27721762]
[1736508450182,6.02315,3307.8,3307.7,4.49221762]
[1736508451149,8.02132952,3307.8,3307.7,0.04021762]
[1736508451476,3.0,3307.2,3306.3,0.015]
[1736508451677,3.0,3307.2,3306.9,0.0075]
[1736508451982,3.0,3307.2,3306.9,0.015]
[1736508452683,0.7801,3307.1,3306.5,0.0225]
[1736508452883,0.7801,3307.1,3306.8,0.0075]
[1736508453088,0.7801,3307.1,3307.0,0.015]
[1736508453683,6.02371,3307.2,3307.0,0.015]
[1736508454189,8.79438518,3307.2,3307.0,0.015]
[1736508455848,8.79438518,3307.2,3307.1,0.215]
[1736508456148,3.7926,3307.4,3306.8,0.015]
[1736508456345,6.02333,3307.7,3307.0,0.015]
[1736508456951,3.0,3307.4,3307.0,0.015]
[1736508457485,3.02352,3307.4,3307.2,0.015]
[1736508459090,3.0,3307.4,3307.2,0.015]
[1736508459390,6.02361,3307.3,3307.2,0.015]
[1736508459882,3.0,3307.2,3306.8,0.0075]
[1736508460084,3.02361,3307.3,3307.0,0.015]
[1736508460380,3.0,3305.8,3305.7,0.1711064]
[1736508460583,3.0,3305.9,3305.7,0.3861064]
[1736508460770,3.02479,3306.1,3305.7,0.1711064]
[1736508460951,0.7771,3306.7,3305.7,0.1711064]
[1736508460952,3.02452,3306.4,3305.8,0.0075]
[1736508461153,3.0,3306.2,3305.9,0.215]
[1736508461353,6.0248,3306.0,3305.9,0.25196238]
[1736508461580,3.0,3306.0,3305.9,0.2225]
[1736508462090,3.0,3306.0,3305.9,0.015]
[1736508462275,3.0,3306.0,3305.9,0.23]
[1736508463151,3.0,3306.0,3305.7,0.1711064]
[1736508463152,3.0,3305.9,3305.7,0.1711064]
[1736508463347,5.79565518,3305.8,3305.7,0.1711064]
[1736508463572,5.79565518,3305.8,3305.7,0.3861064]
[1736508463788,2.77067518,3305.8,3305.7,0.3861064]
[1736508464349,5.77067518,3305.8,3305.7,0.4011064]
[1736508464862,3.0,3305.8,3305.7,0.4011064]
[1736508465066,3.0,3305.8,3305.7,0.43814267]
[1736508467996,3.0,3305.8,3305.7,0.22314267]
[1736508468177,3.0,3305.8,3305.7,0.43814267]
[1736508469313,6.37315518,3305.8,3305.7,0.42314267]
[1736508469476,3.0,3305.8,3305.7,0.42314267]
[1736508469675,0.7703,3306.5,3305.8,0.0225]
[1736508469919,3.0,3306.2,3305.8,0.0225]
[1736508470220,0.817,3307.2,3306.1,0.0075]
[1736508470373,5.79462518,3307.0,3306.1,0.0075]
[1736508470581,2.77067518,3307.0,3306.4,0.0075]
[1736508470984,2.77067518,3306.7,3306.5,0.03674078]
[1736508471286,2.77067518,3306.7,3306.6,0.215]
[1736508471504,5.77067518,3306.7,3306.6,0.23]
[1736508471715,5.77067518,3306.7,3305.7,0.1711064]
[1736508471716,0.7952,3306.6,3305.7,3.1961664]
[1736508471873,0.7952,3306.6,3305.8,0.25199932]
[1736508472077,8.79486518,3306.7,3306.0,0.0225]
[1736508472278,3.0,3306.6,3306.0,0.0225]
[1736508472509,0.7952,3306.9,3306.0,0.0225]
[1736508472510,3.0,3306.3,3306.0,0.0225]
[1736508472717,3.0,3306.3,3306.1,0.03688851]
[1736508472887,3.0,3306.3,3305.8,0.215]
[1736508473095,3.0,3306.3,3305.9,0.0225]
[1736508473403,3.0,3306.3,3305.9,0.05972405]
[1736508473806,3.0,3306.6,3305.9,0.05972405]
[1736508474033,3.0,3306.6,3305.9,0.0225]
[1736508474241,3.0,3306.6,3306.1,0.015]
[1736508474532,3.0,3306.6,3306.2,0.03711324]
[1736508474824,6.02425,3306.6,3306.3,0.0075]
[1736508474998,3.0,3306.4,3306.3,0.0075]
[1736508475179,3.0,3306.4,3305.9,0.0075]
[1736508475180,3.0,3306.4,3305.9,0.015]
[1736508475378,3.0,3306.4,3306.1,0.0075]
[1736508475576,3.02412,3306.8,3306.1,0.0075]
[1736508475815,3.02412,3306.8,3306.3,0.015]
[1736508475995,3.0,3306.7,3306.3,0.015]
[1736508476194,3.0,3306.7,3306.5,0.0075]
[1736508477344,3.706102,3306.7,3306.0,0.0075]
[1736508477896,3.706102,3306.7,3306.3,0.0075]
[1736508478502,3.706102,3306.7,3306.0,0.0075]
[1736508478816,3.706102,3306.7,3306.3,0.0075]
[1736508480832,3.81919,3306.9,3306.0,0.0075]
[1736508481035,3.02399,3306.9,3306.0,0.0075]
[1736508481237,3.02399,3306.9,3306.2,0.0225]
[1736508481432,3.02382,3307.1,3306.2,0.0225]
[1736508481832,3.7919,3307.2,3306.5,0.0075]
[1736508482034,4.497155,3307.2,3306.5,0.0075]
[1736508482337,4.497155,3307.2,3306.8,0.0075]
[1736508482543,4.497155,3307.2,3307.0,0.015]
[1736508482920,3.705255,3307.2,3307.0,0.015]
[1736508484698,3.02388,3307.0,3306.9,0.215]
[1736508484901,6.02388,3307.0,3306.9,0.215]
[1736508485130,6.6944235,3307.0,3306.9,0.215]
[1736508486215,3.7549,3306.9,3306.3,0.0075]
[1736508486414,6.02399,3306.9,3306.5,0.015]
[1736508486822,6.02399,3306.9,3306.7,0.015]
[1736508487759,0.7549,3307.1,3306.7,0.0075]
[1736508488043,3.0,3307.0,3306.7,0.0075]
[1736508488344,3.0,3307.0,3306.9,0.0075]
[1736508490521,3.02388,3307.0,3306.5,0.0075]
[1736508490728,3.02388,3307.0,3306.7,0.015]
[1736508490927,3.02388,3307.0,3306.9,0.0075]
[1736508491639,3.3944235,3307.0,3306.9,0.0075]
[1736508494627,3.02388,3307.0,3306.6,0.0075]
[1736508494964,0.681555,3307.2,3306.8,0.015]
[1736508495164,3.0238,3307.1,3306.8,0.015]
[1736508495461,3.02389,3307.0,3306.8,0.015]
[1736508495667,6.02398,3306.9,3306.8,0.0075]
[1736508497925,3.0,3307.0,3306.5,0.0225]
[1736508498331,3.0,3307.0,3306.7,0.015]
[1736508498562,3.0,3307.0,3306.9,0.0075]
[1736508498968,3.7586,3307.0,3306.9,0.0075]
[1736508499269,3.78248,3307.0,3306.9,0.2225]
[1736508500264,3.02388,3307.0,3306.9,0.2225]
[1736508500630,3.02373,3307.2,3306.9,0.2225]
[1736508501269,0.8199,3307.4,3306.9,0.2225]
[1736508501441,3.0,3307.0,3306.9,0.2225]
[1736508503767,3.0,3307.0,3306.9,0.23]
[1736508504268,0.38199,3307.3,3307.0,0.0075]
[1736508504573,3.0,3307.2,3307.0,0.0075]
[1736508505468,3.02371,3307.2,3307.0,0.0075]
[1736508505669,3.02371,3307.2,3307.1,0.03681831]
[1736508506038,3.02371,3307.2,3307.0,0.0075]
[1736508507938,3.02371,3307.2,3307.1,0.04431831]
[1736508508157,3.02371,3307.2,3307.1,0.0075]
[1736508508791,6.02371,3307.2,3307.1,0.0075]
[1736508509673,6.02379,3307.1,3307.0,0.0075]
[1736508509870,0.8199,3307.4,3305.6,2.77067518]
[1736508509871,3.7991,3306.9,3305.6,2.77067518]
[1736508510073,3.02419,3306.7,3305.8,0.215]
[1736508510278,3.02419,3306.7,3306.4,0.015]
[1736508510651,6.02419,3306.7,3306.6,0.0075]
[1736508512455,6.02419,3306.7,3306.6,0.2225]
[1736508513081,6.02419,3306.7,3306.6,0.23]
[1736508524286,6.706519,3306.7,3306.6,0.015]
[1736508524491,6.706519,3306.7,3306.6,0.23]
[1736508525781,6.02419,3306.7,3306.6,0.23]
[1736508526966,6.78349,3306.7,3306.6,0.215]
[1736508528173,8.65960555,3306.7,3306.6,0.215]
[1736508528378,3.02462,3306.2,3305.8,0.0225]
[1736508528563,3.02462,3306.2,3306.1,0.0075]
[1736508529297,3.02462,3306.2,3305.7,0.79125204]
[1736508529298,3.02498,3305.8,3305.7,0.1711064]
[1736508529497,6.02498,3305.8,3305.7,0.3861064]
[1736508529673,6.78428,3305.8,3305.7,0.42223849]
[1736508529873,6.78428,3305.8,3305.7,0.3861064]
[1736508530964,3.0,3305.8,3305.7,0.4011064]
[1736508531165,1.87611555,3306.2,3305.9,0.0075]
[1736508531369,1.87611555,3306.7,3305.9,0.0075]
[1736508531598,3.02435,3306.5,3305.9,0.0075]
[1736508531901,3.0,3306.4,3305.9,0.0075]
[1736508532063,3.0,3306.8,3305.9,0.0075]
[1736508532270,3.0,3306.4,3306.2,0.0075]
[1736508532468,3.02444,3306.4,3306.2,0.0075]
[1736508532681,3.0,3306.3,3306.2,0.0075]
[1736508536185,3.0,3306.7,3306.2,0.0075]
[1736508536479,3.0,3306.5,3306.2,0.0075]
[1736508536890,3.02435,3306.5,3306.4,0.0075]
[1736508537601,3.02435,3306.5,3306.2,0.0075]
[1736508537903,3.02435,3306.5,3305.9,0.0075]
[1736508538201,5.72272555,3306.9,3306.1,0.0225]
[1736508538202,3.0,3306.6,3306.1,0.0225]
[1736508538619,3.02429,3306.6,3306.2,0.0359474]
[1736508538917,3.02429,3306.6,3306.1,0.0225]
[1736508539104,3.02435,3306.5,3306.4,0.015]
[1736508539297,6.02435,3306.5,3306.4,0.015]
[1736508539602,6.02435,3306.5,3306.4,0.0075]
[1736508541712,3.02435,3306.5,3306.4,0.23]
[1736508542114,3.02435,3306.5,3306.4,0.215]
[1736508542314,6.703115,3306.5,3306.4,0.215]
[1736508543115,3.0,3306.5,3306.4,0.23]
[1736508546921,6.02434,3306.5,3306.4,0.23]
[1736508556348,3.0,3306.5,3306.4,0.23]
[1736508567366,3.0,3306.5,3306.4,0.015]
[1736508567642,3.0,3306.5,3306.4,0.23]
[1736508568553,0.7633,3306.9,3306.4,0.0075]
[1736508568747,1.87611555,3307.0,3306.5,0.2375]
[1736508569046,5.5252174,3307.2,3306.5,0.27194566]
[1736508569047,4.89984555,3307.2,3306.5,0.27194566]
[1736508569410,3.0,3307.1,3306.5,0.27194566]
[1736508569946,3.02381,3307.1,3306.5,0.27194566]
[1736508572631,3.02381,3307.1,3306.5,0.2375]
[1736508572824,3.02381,3307.1,3306.7,0.0225]
[1736508574182,3.02365,3307.3,3306.7,0.0225]
[1736508574324,3.8211,3307.4,3306.7,0.0225]
[1736508574527,3.02375,3307.2,3306.7,0.0225]
[1736508574742,3.02375,3307.2,3306.9,0.015]
[1736508576945,3.02375,3307.2,3306.6,0.0225]
[1736508577340,3.0238,3307.1,3306.9,0.0075]
[1736508578270,3.0238,3307.1,3306.6,0.0225]
[1736508578471,3.0238,3307.1,3307.0,0.04916297]
[1736508578801,3.0238,3307.1,3307.0,0.015]
[1736508583886,3.0238,3307.1,3307.0,0.23]
[1736508588290,4.34279971,3307.2,3307.1,0.015]
[1736508588678,1.87611555,3307.5,3307.2,0.0075]
[1736508589356,1.87611555,3307.9,3307.3,0.04775453]
[1736508590092,1.31909971,3307.9,3307.3,0.04775453]
[1736508593302,3.02299,3308.0,3307.3,0.04775453]
[1736508593657,3.02299,3308.0,3307.5,0.0225]
[1736508594165,3.02299,3308.0,3307.8,0.0075]
[1736508594459,3.02299,3308.0,3307.9,0.23]
[1736508595590,2.78546936,3308.1,3307.9,0.23]
[1736508595795,5.78546936,3308.1,3308.0,0.015]
[1736508597040,8.80834936,3308.1,3308.0,0.015]
[1736508599864,9.70352459,3308.1,3308.0,0.0075]
[1736508600069,3.0,3307.9,3306.6,12.01422]
[1736508600223,6.0237,3307.2,3306.3,5.28]
[1736508600537,6.0237,3307.2,3306.7,0.214]
[1736508600701,6.0237,3307.2,3306.8,0.015]
[1736508600901,0.7651,3307.6,3306.8,0.04523889]
[1736508601100,6.02327,3307.7,3306.8,0.04523889]
[1736508601633,0.7651,3307.9,3306.9,0.0075]
[1736508601857,3.78785,3308.3,3307.3,0.0225]
[1736508602011,3.02259,3308.5,3307.5,0.0225]
[1736508602210,3.02259,3308.5,3307.7,0.0225]
[1736508602439,3.0,3308.3,3307.7,0.0225]
[1736508602736,3.0,3308.3,3307.7,0.64944399]
[1736508602924,3.02232,3308.8,3307.9,0.0225]
[1736508603270,2.78546936,3308.9,3307.9,0.0225]
[1736508603271,3.0,3308.6,3308.1,0.0225]
[1736508603402,2.78546936,3308.9,3308.1,0.0225]
[1736508603600,3.02228,3308.8,3308.1,0.0225]
[1736508604235,2.78546936,3308.9,3308.1,0.0225]
[1736508604437,0.8231,3309.3,3308.1,0.0225]
[1736508604695,3.02189,3309.2,3308.1,3.07555266]
[1736508604874,3.0,3309.1,3308.3,0.0225]
[1736508605038,3.0,3309.3,3308.3,0.05272171]
[1736508605243,3.0219,3309.2,3308.3,0.0225]
[1736508606310,3.02198,3309.1,3308.3,0.0225]
[1736508606463,3.0,3309.0,3308.3,0.0225]
[1736508606663,3.0,3309.3,3308.5,0.0225]
[1736508606994,3.84124,3309.6,3308.8,0.0075]
[1736508607138,3.8197,3309.6,3308.8,0.0075]
[1736508607346,3.0,3309.3,3308.8,0.0075]
[1736508607541,2.78546936,3309.4,3308.8,0.0075]
[1736508608003,3.0,3309.4,3308.8,0.0075]
[1736508608510,10.63391238,3310.3,3308.9,0.015]
[1736508608511,3.02143,3309.7,3308.9,0.015]
[1736508608873,3.0,3309.6,3308.9,0.015]
[1736508609217,3.0,3309.8,3309.0,0.0075]
[1736508609479,3.0,3309.8,3309.1,0.015]
[1736508610058,3.0,3309.6,3309.1,0.015]
[1736508610272,5.78546936,3309.4,3308.5,5.28]
[1736508610588,3.0,3309.0,3308.6,0.214]
[1736508610800,3.0,3309.0,3308.7,0.015]
[1736508611007,8.80770936,3308.8,3308.7,0.0075]